[Event "1st Bangalore GM-Open-A 2024"]
[Site "Bangalore"]
[Date "2024.01.21"]
[Round "6.38"]
[White "Kumar, Gaurav"]
[Black "Saptarshi, Roy"]
[Result "1-0"]
[ECO "B28"]
[WhiteElo "1953"]
[BlackElo "2322"]
[Annotator "ChessBase"]
[PlyCount "77"]
[EventDate "2024.01.20"]
[EventType "swiss"]
[EventCountry "IND"]
[SourceTitle "playchess.com"]
[Source "ChessBase"]
[SourceQuality "1"]
[TimeControl "5400+30"]

1. e4 {[%emt 0:08:09]} c5 {[%emt 0:00:38]} 2. Nf3 {[%emt 0:00:27]} a6 {[%emt 0:00:06]} 3. g3 {[%emt 0:02:51]} b5 {[%emt 0:00:31]} 4. Bg2 {[%emt 0:01:01]} Bb7 {[%emt 0:00:06]} 5. Qe2 {[%emt 0:03:17]} g6 {[%emt 0:01:26]} 6. O-O {[%emt 0:02:05]} Bg7 {[%emt 0:00:15]} 7. a4 {[%emt 0:06:42]} b4 {[%emt 0:00:44]} 8. d3 {[%emt 0:00:17]} Nc6 {[%emt 0:01:11]} 9. Nbd2 {[%emt 0:00:44]} d6 {[%emt 0:01:04]} 10. Nc4 {[%emt 0:00:17]} Qc7 {[%emt 0:00:29]} 11. a5 {[%emt 0:00:41]} Nf6 {[%emt 0:01:25]} 12. Bf4 {[%emt 0:14:57]} e5 {[%emt 0:09:21]} 13. Bg5 {[%emt 0:01:40]} Nd7 {[%emt 0:00:11]} 14. Qd2 {[%emt 0:02:54]} h6 {[%emt 0:03:24]} 15. Be3 {[%emt 0:00:12]} Ne7 {[%emt 0:02:16]} 16. c3 {[%emt 0:07:38]} bxc3 {[%emt 0:06:13]} 17. bxc3 {[%emt 0:01:55]} Bc6 {[%emt 0:08:50]} 18. Rab1 {[%emt 0:04:34]} Rb8 {[%emt 0:09:42]} 19. Rxb8+ {[%emt 0:05:36]} Qxb8 {[%emt 0:00:19]} 20. d4 {[%emt 0:00:28]} Nc8 {[%emt 0:16:04]} 21. dxe5 {[%emt 0:06:45]} dxe5 {[%emt 0:00:18]} 22. Rd1 {[%emt 0:01:54]} O-O {[%emt 0:12:19]} 23. Bxh6 {[%emt 0:01:18]} Ba4 {[%emt 0:03:58]} 24. Ra1 {[%emt 0:04:16]} Bb5 {[%emt 0:01:48]} 25. Bxg7 {[%emt 0:04:49]} Kxg7 {[%emt 0:00:05]} 26. Ne3 {[%emt 0:02:53]} Nd6 {[%emt 0:00:23]} 27. Nh4 {[%emt 0:02:16]} f6 {[%emt 0:02:44]} 28. Qd5 {[%emt 0:05:23]} f5 {[%emt 0:13:22]} 29. exf5 {[%emt 0:02:10]} Nxf5 {[%emt 0:01:44]} 30. Nexf5+ {[%emt 0:01:47]} gxf5 {[%emt 0:00:05]} 31. c4 {[%emt 0:00:12]} Nf6 {[%emt 0:02:03]} 32. Nxf5+ {[%emt 0:00:14]} Kg6 {[%emt 0:00:17]} 33. Ne7+ {[%emt 0:01:59]} Kg7 {[%emt 0:00:05]} 34. Qd2 {[%emt 0:01:46]} Bxc4 {[%emt 0:00:40]} 35. Qg5+ {[%emt 0:00:30]} Kf7 {[%emt 0:00:05]} 36. Nc6 {[%emt 0:00:11]} Qb2 {[%emt 0:01:25]} 37. Nxe5+ {[%emt 0:00:12]} Ke8 {[%emt 0:00:22]} 38. Re1 {[%emt 0:01:27]} Qc3 {[%emt 0:00:14]} 39. Rc1 {[%emt 0:02:13]} 1-0

[Event "1st Bangalore GM-Open-A 2024"]
[Site "Bangalore"]
[Date "2024.01.21"]
[Round "6.39"]
[White "Mohamed Anees M"]
[Black "Sathvik Adiga"]
[Result "1/2-1/2"]
[ECO "E62"]
[WhiteElo "2319"]
[BlackElo "2142"]
[Annotator "ChessBase"]
[PlyCount "125"]
[EventDate "2024.01.20"]
[EventType "swiss"]
[EventCountry "IND"]
[SourceTitle "playchess.com"]
[Source "ChessBase"]
[SourceQuality "1"]
[TimeControl "5400+30"]

1. Nf3 {[%emt 0:01:07]} Nf6 {[%emt 0:01:16]} 2. c4 {[%emt 0:00:49]} g6 {[%emt 0:00:07]} 3. g3 {[%emt 0:00:35]} Bg7 {[%emt 0:00:06]} 4. Bg2 {[%emt 0:00:04]} O-O {[%emt 0:00:05]} 5. O-O {[%emt 0:00:19]} d6 {[%emt 0:00:04]} 6. d4 {[%emt 0:00:33]} Nc6 {[%emt 0:00:07]} 7. Nc3 {[%emt 0:00:29]} e5 {[%emt 0:00:06]} 8. d5 {[%emt 0:08:38]} Nb8 {[%emt 0:00:18]} 9. e4 {[%emt 0:00:44]} a5 {[%emt 0:00:16]} 10. Ne1 {[%emt 0:06:06]} Na6 {[%emt 0:00:52]} 11. Nd3 {[%emt 0:01:27]} Nd7 {[%emt 0:02:09]} 12. Be3 {[%emt 0:03:25]} f5 {[%emt 0:01:42]} 13. f4 {[%emt 0:08:19]} Ndc5 {[%emt 0:05:28]} 14. fxe5 {[%emt 0:04:02]} Nxd3 {[%emt 0:00:58]} 15. Qxd3 {[%emt 0:00:11]} Bxe5 {[%emt 0:00:45]} 16. Qd2 {[%emt 0:11:29]} Nc5 {[%emt 0:06:32]} 17. Rae1 {[%emt 0:11:06]} b6 {[%emt 0:15:30]} 18. Bg5 {[%emt 0:03:42]} Bf6 {[%emt 0:02:03]} 19. Bxf6 {[%emt 0:00:47]} Rxf6 {[%emt 0:00:15]} 20. e5 {[%emt 0:00:21]} dxe5 {[%emt 0:00:46]} 21. Rxe5 {[%emt 0:00:07]} Be6 {[%emt 0:12:15]} 22. g4 {[%emt 0:12:55]} Bd7 {[%emt 0:06:36]} 23. g5 {[%emt 0:09:00]} Rd6 {[%emt 0:04:15]} 24. Rfe1 {[%emt 0:01:21]} Ne6 {[%emt 0:02:25]} 25. h4 {[%emt 0:01:41]} Ng7 {[%emt 0:00:38]} 26. Ne2 {[%emt 0:04:18]} Qf8 {[%emt 0:01:53]} 27. Nf4 {[%emt 0:00:05]} Re8 {[%emt 0:00:54]} 28. b3 {[%emt 0:01:37]} Rxe5 {[%emt 0:01:31]} 29. Rxe5 {[%emt 0:00:04]} Bc8 {[%emt 0:00:04]} 30. Bf3 {[%emt 0:03:15]} Qd8 {[%emt 0:08:35]} 31. Qe3 {[%emt 0:01:30]} Kf7 {[%emt 0:00:58]} 32. c5 {[%emt 0:01:00]} bxc5 {[%emt 0:01:22]} 33. Qxc5 {[%emt 0:00:05]} Rb6 {[%emt 0:04:18]} 34. Qxa5 {[%emt 0:01:43]} Ra6 {[%emt 0:00:42]} 35. Qd2 {[%emt 0:00:14]} Qd6 {[%emt 0:01:11]} 36. Nd3 {[%emt 0:00:17]} Qb6+ {[%emt 0:00:57]} 37. Kg2 {[%emt 0:01:46]} Qd4 {[%emt 0:04:32]} 38. Re2 {[%emt 0:00:35]} Qxh4 {[%emt 0:03:28]} 39. Qe3 {[%emt 0:01:02]} Kg8 {[%emt 0:00:36]} 40. Qe7 {[%emt 0:01:35]} Rd6 {[%emt 0:00:16]} 41. Ne5 {[%emt 0:01:12]} h5 {[%emt 0:00:25]} 42. Qxc7 {[%emt 0:00:21]} Qxg5+ {[%emt 0:00:16]} 43. Kf1 {[%emt 0:00:12]} Qd8 {[%emt 0:00:44]} 44. Qxd8+ {[%emt 0:00:05]} Rxd8 {[%emt 0:00:06]} 45. Nxg6 {[%emt 0:00:02]} Ba6 {[%emt 0:00:03]} 46. Ne7+ {[%emt 0:00:31]} Kf7 {[%emt 0:00:03]} 47. Nc6 {[%emt 0:00:03]} Re8 {[%emt 0:02:44]} 48. b4 {[%emt 0:00:30]} Ra8 {[%emt 0:00:57]} 49. Na5 {[%emt 0:01:56]} Bxe2+ {[%emt 0:05:31]} 50. Kxe2 {[%emt 0:00:17]} Ra6 {[%emt 0:00:46]} 51. a3 {[%emt 0:00:18]} h4 {[%emt 0:00:29]} 52. Nc4 {[%emt 0:00:34]} Ne8 {[%emt 0:00:38]} 53. b5 {[%emt 0:00:59]} Ra4 {[%emt 0:00:06]} 54. Kd3 {[%emt 0:00:30]} Ke7 {[%emt 0:00:16]} 55. b6 {[%emt 0:03:21]} Kd7 {[%emt 0:02:57]} 56. b7 {[%emt 0:00:00]} Kc7 {[%emt 0:00:10]} 57. d6+ {[%emt 0:00:00]} Nxd6 {[%emt 0:00:08]} 58. Nxd6 {[%emt 0:00:00]} Rxa3+ {[%emt 0:00:07]} 59. Ke2 {[%emt 0:00:00]} Kb8 {[%emt 0:00:16]} 60. Nxf5 {[%emt 0:00:00]} h3 {[%emt 0:00:10]} 61. Ng3 {[%emt 0:00:00]} h2 {[%emt 0:00:08]} 62. Nh1 {[%emt 0:00:00]} Rxf3 {[%emt 0:00:18]} 63. Kxf3 {[%emt 0:00:00]} 1/2-1/2

[Event "1st Bangalore GM-Open-A 2024"]
[Site "Bangalore"]
[Date "2024.01.21"]
[Round "6.40"]
[White "Ankit Ray"]
[Black "Sahoo, Utkal Ranjan"]
[Result "1/2-1/2"]
[ECO "A04"]
[WhiteElo "1912"]
[BlackElo "2316"]
[Annotator "ChessBase"]
[PlyCount "74"]
[EventDate "2024.01.20"]
[EventType "swiss"]
[EventCountry "IND"]
[SourceTitle "playchess.com"]
[Source "ChessBase"]
[SourceQuality "1"]
[TimeControl "5400+30"]

1. Nf3 {[%emt 0:00:14]} f5 {[%emt 0:00:43]} 2. d3 {[%emt 0:00:09]} Nf6 {[%emt 0:00:42]} 3. e4 {[%emt 0:00:09]} d6 {[%emt 0:01:53]} 4. exf5 {[%emt 0:00:28]} Bxf5 {[%emt 0:00:23]} 5. d4 {[%emt 0:00:07]} Qd7 {[%emt 0:01:56]} 6. Bd3 {[%emt 0:01:07]} Nc6 {[%emt 0:00:55]} 7. O-O {[%emt 0:01:27]} g6 {[%emt 0:04:19]} 8. c4 {[%emt 0:02:03]} Bg4 {[%emt 0:04:03]} 9. Be2 {[%emt 0:01:57]} Bg7 {[%emt 0:02:45]} 10. h3 {[%emt 0:05:19]} Bh5 {[%emt 0:05:18]} 11. d5 {[%emt 0:07:37]} Bxf3 {[%emt 0:04:29]} 12. Bxf3 {[%emt 0:00:19]} Ne5 {[%emt 0:00:23]} 13. Be2 {[%emt 0:00:10]} O-O {[%emt 0:00:14]} 14. Nc3 {[%emt 0:00:08]} c6 {[%emt 0:00:52]} 15. Be3 {[%emt 0:06:30]} e6 {[%emt 0:03:23]} 16. Qd2 {[%emt 0:04:24]} exd5 {[%emt 0:02:27]} 17. cxd5 {[%emt 0:00:06]} c5 {[%emt 0:00:20]} 18. Bg5 {[%emt 0:09:54]} Kh8 {[%emt 0:06:03]} 19. Kh1 {[%emt 0:03:05]} a6 {[%emt 0:02:50]} 20. f4 {[%emt 0:00:49]} Nf7 {[%emt 0:00:29]} 21. Bxf6 {[%emt 0:00:14]} Bxf6 {[%emt 0:00:05]} 22. Bg4 {[%emt 0:01:00]} Qd8 {[%emt 0:00:09]} 23. Ne4 {[%emt 0:02:36]} Bd4 {[%emt 0:01:21]} 24. Be6 {[%emt 0:04:00]} Nh6 {[%emt 0:01:26]} 25. Rae1 {[%emt 0:05:53]} Qe7 {[%emt 0:07:49]} 26. g4 {[%emt 0:05:14]} Rad8 {[%emt 0:05:35]} 27. Re2 {[%emt 0:09:02]} Qh4 {[%emt 0:07:09]} 28. Rf3 {[%emt 0:02:24]} Ng8 {[%emt 0:04:49]} 29. Bxg8 {[%emt 0:02:42]} Kxg8 {[%emt 0:00:59]} 30. Ng5 {[%emt 0:00:14]} Qxg5 {[%emt 0:04:36]} 31. fxg5 {[%emt 0:00:11]} Rxf3 {[%emt 0:00:04]} 32. Kg2 {[%emt 0:01:14]} Rdf8 {[%emt 0:00:25]} 33. Qa5 {[%emt 0:03:12]} Be5 {[%emt 0:05:57]} 34. Rxe5 {[%emt 0:00:26]} Rf2+ {[%emt 0:00:47]} 35. Kg3 {[%emt 0:01:29]} R2f3+ {[%emt 0:00:33]} 36. Kg2 {[%emt 0:01:00]} Rf2+ {[%emt 0:01:10]} 37. Kg3 {[%emt 0:00:01]} R2f3+ {[%emt 0:01:03]} 1/2-1/2

[Event "1st Bangalore GM-Open-A 2024"]
[Site "Bangalore"]
[Date "2024.01.23"]
[Round "7.2"]
[White "Iniyan, Pa"]
[Black "Sethuraman, S.P."]
[Result "0-1"]
[ECO "D43"]
[WhiteElo "2515"]
[BlackElo "2594"]
[Annotator "TA"]
[PlyCount "84"]
[EventDate "2024.01.20"]
[EventType "swiss"]
[EventCountry "IND"]
[SourceTitle "playchess.com"]
[Source "ChessBase"]
[SourceQuality "1"]
[TimeControl "5400+30"]

{[%evp 14,84,7,0,14,8,20,16,28,10,28,31,39,6,12,10,8,0,15,-33,-31,-27,0,-6,-5,-51,-49,-37,-33,-47,-39,-38,-4,-11,0,-16,-21,-32,0,-185,-188,-190,-191,-178,-188,-190,-78,-200,-203,-254,-59,-365,-357,-329,-285,-336,-309,-317,-274,-459,-461,-460,-445,-567,-504,-619,-616,-644,-610,-29981,-29982,-29989,-29990]} 1. d4 {[%emt 0:06:33]} Nf6 {[%emt 0:00:08]} 2. c4 {[%emt 0:00:08]} e6 {[%emt 0:00:04]} 3. Nf3 {[%emt 0:00:08]} d5 {[%emt 0:00:05]} 4. Nc3 {[%emt 0:00:08]} dxc4 {[%emt 0:00:07]} 5. Qa4+ {[%emt 0:01:29]} c6 {[%emt 0:11:14]} 6. Qxc4 {[%emt 0:01:31]} b5 {[%emt 0:00:04]} 7. Qd3 {[%emt 0:00:10]} Nbd7 {[%emt 0:03:37]} 8. e4 {[%emt 0:00:10]} b4 {[%emt 0:00:04] D43: Semi-Slav: 5 Bg5 h6.} 9. Na4 {[%emt 0:00:08]} Qa5 {[%emt 0:00:35]} 10. b3 {[%emt 0:00:07]} Bb7 {[%emt 0:00:45] The position is equal.} 11. Bf4 {[%emt 0:00:09]} Be7 {[%emt 0:07:55]} 12. Nd2 {[%emt 0:04:14][%cal Bf3d2,Bd2c4,Bc4e5][%mdl 32]} O-O {[%emt 0:04:34] [#]} 13. Nc4 $146 {[%emt 0:00:27]} ({Predecessor:} 13. f3 Nh5 14. Nc4 Qd8 15. Be3 Qc7 16. Qd2 c5 17. Nxc5 Nxc5 18. dxc5 Bxc5 19. Bxc5 Qxc5 {1-0 Enev,Z (2069)-Wiesinger,J (1897) EU-ch SC-OR/475 email 2022}) 13... Qd8 {[%emt 0:00:25]} 14. f3 {[%emt 0:19:29]} Ba6 {[%emt 0:06:17][%cal Of6d5]} 15. Qd2 {[%emt 0:14:09]} Bb5 {[%emt 0:10:15]} 16. g4 {[%emt 0:05:02]} (16. Rd1 $11) 16... Bxa4 $15 {[%emt 0:08:34]} 17. bxa4 {[%emt 0:00:26]} Nb6 {[%emt 0:00:04]} 18. Ne5 {[%emt 0:05:00]} Nxa4 {[%emt 0:03:27]} 19. g5 {[%emt 0:01:21]} (19. Nxc6 $11 {deserves consideration.} Qd7 20. Nxe7+ (20. Nxb4 $2 Qb7 $19) 20... Qxe7 21. Bd3) 19... Nh5 {[%emt 0:02:05]} 20. Nxc6 {[%emt 0:05:40]} Qd7 {[%emt 0:02:14]} 21. Nxe7+ {[%emt 0:01:54]} (21. Nxb4 $2 Nxf4 22. Na6 Bxg5 $19) 21... Qxe7 {[%emt 0:00:04]} 22. Be5 {[%emt 0:04:30]} f6 {[%emt 0:12:03]} 23. gxf6 {[%emt 0:00:11]} Nxf6 {[%emt 0:00:11]} 24. Rg1 {[%emt 0:03:37]} Rf7 {[%emt 0:00:31]} 25. Bc4 {[%emt 0:05:43]} Nc3 {[%emt 0:06:36]} (25... Nd7 $5 {[%cal Rd7e5]} 26. Qg5 Nxe5 27. Qxe5 Rxf3 28. Qxe6+ (28. Bxe6+ Kh8 $15) 28... Qxe6 29. Bxe6+ Kh8 $11) 26. a3 $2 {[%emt 0:03:47] [#]} Rc8 $1 $19 {[%emt 0:03:19]} (26... Nd7 27. Qg5 Nxe5 28. Qxe5 Qh4+ 29. Rg3 $17) 27. Bb3 {[%emt 0:00:08]} Nd7 {[%emt 0:08:02] Excellent horsemanship.} (27... bxa3 28. Rc1 Nd7 29. Rxc3 $18) 28. Qg5 {[%emt 0:01:08] Threatens to win with Qxe7.} Nxe5 {[%emt 0:01:01]} (28... bxa3 29. Qxe7 Rxe7 30. Bxe6+ (30. Rxa3 Nxe5 31. dxe5 Nb5 $11) 30... Rxe6 31. Rxg7+ (31. Rxa3 $2 Nxe5 32. dxe5 Nb5 $19) 31... Kf8 32. Rxd7 $18) 29. Qxe5 {[%emt 0:00:23]} Re8 {[%emt 0:00:29]} (29... bxa3 $2 30. Qxe6 Qxe6 31. Bxe6 $18) (29... Qh4+ $19 {has better winning chances.} 30. Rg3 Kh8) 30. Kf2 {[%emt 0:05:42]} (30. Kd2 $17) 30... bxa3 {[%emt 0:03:29]} 31. Rg4 {[%emt 0:00:11]} Kh8 $2 $40 {[%emt 0:04:33][%mdl 128] Black mounts an attack.} (31... Qb4 $19 32. Rag1 (32. Bxe6 $2 Kh8 $19) 32... Nxe4+ 33. Qxe4 Qxb3 34. Rxg7+ {[%mdl 64] Decoy} Rxg7 35. Rxg7+ Kxg7 36. Qe5+ Kh6 37. Qf4+ Kh5 38. Qe5+ (38. Qf7+ Kh6 $11) 38... Kh6 39. Qf4+ Kh5 40. Qe5+ (40. Qf7+ Kh6 $11) 40... Kh6) 32. Qa5 $2 {[%emt 0:00:10][%mdl 8192]} (32. Qc5 $1 $15 Qxc5 33. dxc5) 32... Rc8 {[%emt 0:01:23][%cal Be8c8,Bc8b8,Bb8b2][%mdl 32] [#] Hoping for ...Qf6.} 33. Kg2 {[%emt 0:02:28]} Qf6 {[%emt 0:00:54][%csl LRd4,LRf3]} 34. Rf1 {[%emt 0:01:01]} Ne2 {[%emt 0:01:00]} (34... Qxd4 35. Bxe6 Nd1 36. Bxf7 $15) 35. Qa6 {[%emt 0:00:42]} Rb8 {[%emt 0:00:03]} 36. e5 $2 {[%emt 0:06:38]} (36. Qxa3 $2 {too greedy.} h5 37. Rg3 Qxd4 $19) (36. Qxe6 Rff8 37. Qxf6 gxf6 38. Bd5) 36... Nf4+ {[%emt 0:00:04]} 37. Kh1 {[%emt 0:00:04]} Qe7 {[%emt 0:00:02]} 38. Bc2 {[%emt 0:00:59]} g6 {[%emt 0:01:06] White must now prevent ...Rb2.} 39. Ra1 {[%emt 0:00:49]} Rb2 {[%emt 0:00:19]} 40. Qa4 {[%emt 0:00:46]} Kg7 {[%emt 0:01:34] Strongly threatening ...Qc7.} 41. Rgg1 {[%emt 0:02:43]} Qh4 {[%emt 0:00:43]} 42. Rgf1 {[%emt 0:00:42]} Rc7 {[%emt 0:00:20] Weighted Error Value: White=0.61/Black=0.20 (precise)} 0-1

[Event "1st Bangalore GM-Open-A 2024"]
[Site "Bangalore"]
[Date "2024.01.23"]
[Round "7.3"]
[White "Short, Nigel D"]
[Black "Ilamparthi A R"]
[Result "1-0"]
[ECO "B40"]
[WhiteElo "2592"]
[BlackElo "2426"]
[Annotator "TA"]
[PlyCount "67"]
[EventDate "2024.01.20"]
[EventType "swiss"]
[EventCountry "IND"]
[SourceTitle "playchess.com"]
[Source "ChessBase"]
[SourceQuality "1"]
[TimeControl "5400+30"]

{[%evp 9,67,0,8,12,11,0,0,0,0,-8,22,0,4,7,25,0,4,0,0,0,0,0,0,-16,-13,-139,0,0,0,-54,33,21,108,113,232,236,461,448,416,293,493,489,454,277,363,339,449,403,647,631,704,635,1416,1429,3706,3242,2571,2280,29988,29988]} 1. e4 {[%emt 0:00:04][%cal Be2e4,Be4e5][%mdl 32]} c5 {[%emt 0:01:43]} 2. Nf3 {[%emt 0:00:07]} e6 {[%emt 0:00:04]} 3. b3 {[%emt 0:01:34]} Nc6 {[%emt 0:02:55]} 4. Bb2 {[%emt 0:00:08]} a6 {[%emt 0:00:08]} 5. c4 {[%emt 0:00:59]} Nf6 {[%emt 0:03:48]} 6. e5 {[%emt 0:03:32] B40: Sicilian: 2...e6, Unusual lines.} Ng4 {[%emt 0:00:07]} 7. h3 {[%emt 0:00:11]} Nh6 {[%emt 0:00:04]} 8. Bd3 {[%emt 0:07:35] The position is equal.} d6 {[%emt 0:12:23]} 9. exd6 {[%emt 0:02:06]} Qxd6 {[%emt 0:01:06] [#]} (9... Nb4 $5 {[%cal Rb4d3]} 10. Bc2 f6 $11) 10. Bc2 $146 {[%emt 0:02:35]} ({Predecessor:} 10. Be4 Bd7 11. O-O O-O-O 12. Qe2 Nf5 13. Bxf5 exf5 14. d4 cxd4 15. Rd1 Qe6 16. Qd3 {½-½ Radovanovic,N (2407)-Beerdsen,T (2510) EU-ch 23rd Vrnjacka Banja 2023 (8)}) 10... Nd4 {[%emt 0:03:38]} 11. Nxd4 {[%emt 0:02:58]} cxd4 {[%emt 0:00:58]} 12. Qe2 {[%emt 0:00:28][%cal Ob3b4]} g6 {[%emt 0:06:29]} 13. O-O {[%emt 0:01:18]} Bg7 {[%emt 0:02:56][%cal Od4d3] [#] ...d3! would be deadly.} 14. Ba3 {[%emt 0:03:57]} Qc7 {[%emt 0:01:17][%cal Od4d3] Threatens to win with ...d3!} 15. d3 $1 {[%emt 0:05:14]} Nf5 {[%emt 0:01:32]} 16. Bd1 {[%emt 0:12:00]} Bd7 {[%emt 0:05:20]} 17. Qb2 {[%emt 0:00:05] [#]} (17. Nd2 $11) 17... Bc6 {[%emt 0:03:33]} ({Black should try} 17... h5 $1 $17 {Hoping for ...g5.} 18. Bf3 g5) 18. Nd2 $11 {[%emt 0:00:07]} Nh4 {[%emt 0:08:18]} 19. Ne4 {[%emt 0:06:30]} (19. g3 $1 $11) 19... O-O-O {[%emt 0:06:37]} (19... Bxe4 $15 20. dxe4 f5) 20. g3 $1 $14 {[%emt 0:01:51]} f5 {[%emt 0:16:53]} (20... g5 $11 {keeps the balance.}) 21. Ng5 {[%emt 0:01:51]} (21. Nc5 {seems wilder.} Bh6 22. Nxe6 Qe5 23. Nxd8 Rxd8 24. f4) 21... Rde8 {[%emt 0:04:41]} 22. gxh4 $18 {[%emt 0:01:30]} e5 $2 {[%emt 0:04:30]} (22... h6) 23. b4 {[%emt 0:02:21][%cal Bb3b4,Bb4b5,Bb5a6,Ba6b7][%mdl 32]} h6 {[%emt 0:07:18]} 24. Nf3 {[%emt 0:06:04][%cal Bg5f3,Bf3e1,Be1g2][%mdl 32]} e4 $2 {[%emt 0:02:55]} (24... b5 25. Rc1 Kb8 26. cxb5 axb5) 25. b5 {[%emt 0:00:23]} (25. Nxd4 $2 Rd8 26. Nxc6 Bxb2 27. Bxb2 Qxc6 28. Bxh8 Rxh8 29. dxe4 Qxe4 $19) 25... Bd7 {[%emt 0:00:30]} 26. Ne1 {[%emt 0:04:41]} (26. Nxd4 a5 $16) 26... g5 {[%emt 0:01:28]} 27. bxa6 {[%emt 0:01:00]} Bc6 {[%emt 0:00:47]} 28. axb7+ {[%emt 0:03:59]} Kb8 {[%emt 0:00:31]} (28... Qxb7 $142 29. Bh5 Re6 30. dxe4 Rxe4 31. Qxb7+ Kxb7 32. Rb1+ Kc7) 29. Rb1 {[%emt 0:00:30] And now Bc5 would win.} e3 {[%emt 0:01:27]} 30. Ng2 {[%emt 0:04:42] Strongly threatening Bc5.} gxh4 {[%emt 0:00:32]} 31. Bc5 {[%emt 0:00:45]} (31. Nxh4 Rhg8 32. Bf3 (32. Nxf5 Be5+ 33. Ng3 Bxg3 34. f3 Bf2+ 35. Kh1 Rg2 {[%mdl 64] Decoy}) 32... Bf6+ 33. Kh1 e2 $19) 31... Bf8 {[%emt 0:00:05]} 32. Qa3 {[%emt 0:00:26][%csl Ga3][%cal Rc5a7]} ({Worse is} 32. Bxd4 Rg8 33. f3 Qg3 $15) 32... Bxb7 {[%emt 0:01:21]} 33. Bxf8 {[%emt 0:00:58][%cal Od1f3] White wants to mate with Bf3!} Rg8 {[%emt 0:00:28]} 34. Bf3 {[%emt 0:00:24] Weighted Error Value: White=0.30/Black=0.92} (34. Bxh6 $2 {leads to mate.} Rxg2+ 35. Kh1 Qh2#) 1-0

[Event "1st Bangalore GM-Open-A 2024"]
[Site "Bangalore"]
[Date "2024.01.23"]
[Round "7.4"]
[White "Nitish Belurkar"]
[Black "Aronyak Ghosh"]
[Result "1/2-1/2"]
[ECO "B13"]
[WhiteElo "2435"]
[BlackElo "2541"]
[Annotator "TA"]
[PlyCount "52"]
[EventDate "2024.01.20"]
[EventType "swiss"]
[EventCountry "IND"]
[SourceTitle "playchess.com"]
[Source "ChessBase"]
[SourceQuality "1"]
[TimeControl "5400+30"]

{[%evp 22,52,62,51,56,47,48,42,47,38,46,48,53,48,71,19,75,22,112,56,46,48,44,26,8,0,64,0,11,0,77,0,48]} 1. e4 {[%emt 0:00:03]} c6 {[%emt 0:00:34]} 2. Nf3 {[%emt 0:00:07]} d5 {[%emt 0:00:27]} 3. exd5 {[%emt 0:00:05]} cxd5 {[%emt 0:00:14]} 4. Ne5 {[%emt 0:00:05]} Nf6 {[%emt 0:04:51]} 5. d4 {[%emt 0:00:09]} g6 {[%emt 0:09:34]} 6. Bd3 {[%emt 0:00:27]} Nc6 {[%emt 0:00:48]} 7. c3 {[%emt 0:00:07]} Bf5 {[%emt 0:04:27]} 8. O-O {[%emt 0:05:53]} Bg7 {[%emt 0:02:01]} 9. Bxf5 {[%emt 0:04:50]} gxf5 {[%emt 0:00:13]} 10. Bf4 {[%emt 0:02:41]} e6 {[%emt 0:02:40]} 11. Nd2 {[%emt 0:00:17]} O-O {[%emt 0:01:30]} 12. Re1 {[%emt 0:02:19]} Ne4 {[%emt 0:08:28]} 13. Nxc6 {[%emt 0:08:00]} bxc6 {[%emt 0:00:09]} 14. Nb3 {[%emt 0:00:34]} a5 {[%emt 0:11:28] OK. White is slightly better.} 15. f3 {[%emt 0:08:19] OK} Nf6 {[%emt 0:01:47] OK} 16. Nc5 {[%emt 0:04:40] OK} Kh8 {[%emt 0:06:18]} 17. Nd3 {[%emt 0:08:54]} Nh5 {[%emt 0:07:12]} 18. Qd2 {[%emt 0:06:45] Mistake (0.5)} (18. Be5 $16) 18... Rg8 {[%emt 0:09:20] Mistake (0.6)} (18... Nxf4 $11 19. Qxf4 Rg8) 19. Re2 {[%emt 0:04:34] Mistake (0.5)} (19. Be5 $16) 19... Qf6 {[%emt 0:06:03] Mistake (0.9)} (19... Nxf4 $11 {remains equal.} 20. Qxf4 Bf6) 20. Ne5 {[%emt 0:07:56] Mistake (0.6)} (20. Bg5 $16 Qg6 (20... Qxg5 21. Qxg5 Bxd4+ 22. cxd4 $16) 21. Rae1) 20... Nxf4 $14 {[%emt 0:00:30] Best} 21. Qxf4 {[%emt 0:00:01]} Rac8 {[%emt 0:01:06] OK} ({Wrong is} 21... Bh6 $2 22. Qxh6 Qxh6 23. Nxf7+ Kg7 24. Nxh6 Kxh6 25. Rxe6+ Rg6 26. Rae1 $18) 22. Qg5 {[%emt 0:07:52] And now Qxf6 would win.} Rc7 {[%emt 0:00:15] Best (Easy)} 23. Qf4 {[%emt 0:00:15] Mistake (0.0)} ({White should try} 23. Qd2 $11) 23... Rcc8 {[%emt 0:00:31] [#] OK} 24. Qg5 {[%emt 0:00:06] White is much more active. Mistake (0.5)} Rc7 $11 {[%emt 0:00:04] Best (Easy)} 25. Qf4 {[%emt 0:00:05] Mistake (0.0)} ({Better is} 25. Qd2 $11) 25... Rcc8 $16 {[%emt 0:00:02] OK} 26. Qg5 {[%emt 0:00:06] Hoping for Qxf6. Inaccurate} Rc7 {[%emt 0:00:46] Weighted Error Value: White=0.28 (precise) /Black=0.17 (very precise) . Best (Easy).  Mistake:       	White=6     	Black=2      Inaccurate:     	White=1     	---        OK:         	White=2     	Black=5      Best:        	---       	Black=4} 1/2-1/2